bitfinex/quotes_SOLUSD_20250316
["timestamp","ask_amount","ask_price","bid_price","bid_amount"]
[1742096082364,0.16044075,135.52,135.51,133.35660787]
[1742096084786,4.075e-05,135.52,135.51,133.35660787]
[1742096085184,4.075e-05,135.52,135.51,134.94760787]
[1742096087867,4.643e-05,135.53,135.51,134.94760787]
[1742096088073,4.643e-05,135.53,135.52,34.09912287]
[1742096088975,4.26e-05,135.54,135.52,41.47802287]
[1742096089162,3.36e-05,135.56,135.55,20.28432314]
[1742096089368,3.36e-05,135.56,135.55,36.55551758]
[1742096089904,3.36e-05,135.56,135.55,55.20516644]
[1742096090595,1.834e-05,135.57,135.56,18.933972]
[1742096090800,1.834e-05,135.57,135.56,41.99012287]
[1742096091091,6.1954,135.68,135.6,0.28432314]
[1742096091279,0.03,135.66,135.64,15.16515087]
[1742096092296,0.03,135.66,135.65,7.3719]
[1742096092772,0.03,135.66,135.64,15.16515087]
[1742096093387,0.03,135.66,135.62,15.16515087]
[1742096093597,15.19515087,135.66,135.62,0.28432314]
[1742096093787,15.16515087,135.65,135.61,6.44216157]
[1742096094198,15.16515087,135.65,135.61,6.3]
[1742096094496,0.14250059,135.62,135.61,6.3]
[1742096095387,0.14250059,135.62,135.61,21.74947401]
[1742096098190,0.14250059,135.62,135.61,6.3]
[1742096098492,0.14250059,135.62,135.61,21.74947401]
[1742096099303,0.14250059,135.62,135.61,6.58432314]
[1742096099706,0.14250059,135.62,135.61,21.74947401]
[1742096100293,0.14250059,135.62,135.59,15.16515087]
[1742096100479,7.51600059,135.62,135.59,21.46515087]
[1742096100680,7.51600059,135.62,135.58,210.58947401]
[1742096100895,7.51600059,135.62,135.58,216.88947401]
[1742096101087,22.68115146,135.62,135.58,201.44]
[1742096101391,22.68115146,135.62,135.58,195.14]
[1742096103194,15.16515087,135.61,135.58,195.14]
[1742096103395,15.16515087,135.61,135.57,6.3]
[1742096104092,15.16515087,135.61,135.57,13.6761]
[1742096104303,22.68115146,135.62,135.57,28.84125087]
[1742096105384,22.68115146,135.62,135.57,13.6761]
[1742096107182,22.68115146,135.62,135.57,6.3]
[1742096107706,7.51600059,135.62,135.57,28.84125087]
[1742096107906,22.68115146,135.62,135.57,28.84125087]
[1742096108210,22.71115146,135.62,135.57,28.84125087]
[1742096108907,15.33765146,135.62,135.57,28.84125087]
[1742096109124,0.17250059,135.62,135.58,22.54055087]
[1742096109592,0.17250059,135.62,135.58,7.3754]
[1742096109795,0.17250059,135.62,135.58,22.54055087]
[1742096111016,0.17250059,135.62,135.59,15.16515087]
[1742096113216,0.17250059,135.62,135.6,7.3746]
[1742096114318,0.15304267,135.61,135.6,7.3746]
[1742096119230,0.15304267,135.61,135.59,22.54005087]
[1742096121128,0.15304267,135.61,135.59,7.3749]
[1742096124228,0.15304267,135.61,135.58,7.3754]
[1742096124423,15.31819354,135.61,135.58,7.3754]
[1742096124628,15.16515087,135.6,135.56,80.763]
[1742096124808,15.16515087,135.6,135.56,87.063]
[1742096125008,15.16515087,135.6,135.56,13.7396]
[1742096127429,0.15304267,135.61,135.56,28.90475087]
[1742096127620,0.15304267,135.61,135.58,15.16515087]
[1742096128131,0.15304267,135.61,135.59,15.16515087]
[1742096128433,0.15304267,135.61,135.58,15.16515087]
[1742096129425,0.15304267,135.61,135.59,7.3751]
[1742096130737,0.15304267,135.61,135.59,22.54025087]
[1742096132535,0.15304267,135.61,135.59,22.60325087]
[1742096134427,0.15727559,135.6,135.59,22.60325087]
[1742096138537,0.15727559,135.6,135.59,7.4381]
[1742096138745,0.15727559,135.6,135.59,0.063]
[1742096147246,0.15727559,135.6,135.59,15.51247401]
[1742096149549,0.15727559,135.6,135.59,22.88757401]
[1742096154346,0.30964128,135.6,135.59,22.88757401]
[1742096154652,0.15236569,135.6,135.59,22.88757401]
[1742096163064,6.569e-05,135.6,135.59,41.53722287]
[1742096164144,2.411e-05,135.61,135.6,0.28432314]
[1742096164342,1.313e-05,135.63,135.62,20.28432314]
[1742096164575,5.374e-05,135.65,135.64,20.28432314]
[1742096164877,5.374e-05,135.65,135.64,35.44947401]
[1742096166554,5.374e-05,135.65,135.64,42.82187401]
[1742096166761,5.374e-05,135.65,135.64,35.44947401]
[1742096167660,5.374e-05,135.65,135.64,15.44947401]
[1742096168061,5.374e-05,135.65,135.63,15.16515087]
[1742096168469,5.374e-05,135.65,135.64,22.82187401]
[1742096168776,0.03005374,135.65,135.64,22.82187401]
[1742096169677,0.03005374,135.65,135.64,15.44947401]
[1742096170983,0.03005374,135.65,135.64,22.82187401]
[1742096171270,0.03005374,135.65,135.64,15.44947401]
[1742096172645,0.03005374,135.65,135.64,22.82187401]
[1742096173064,0.03005374,135.65,135.64,15.44947401]
[1742096173754,0.03005374,135.65,135.64,22.82187401]
[1742096174060,0.03005374,135.65,135.64,15.44947401]
[1742096174462,0.16747464,135.65,135.64,15.44947401]
[1742096180765,0.16747464,135.65,135.63,7.3728]
[1742096180766,0.16747464,135.65,135.63,15.16515087]
[1742096182466,0.16747464,135.65,135.62,28.98071244]
[1742096182772,0.16747464,135.65,135.63,6.3]
[1742096183567,0.16747464,135.65,135.63,13.6729]
[1742096183775,0.16747464,135.65,135.63,28.83805087]
[1742096184472,0.16747464,135.65,135.64,15.16515087]
[1742096185170,0.16747464,135.65,135.64,15.44947401]
[1742096185579,0.16747464,135.65,135.64,22.82187401]
[1742096185970,0.16747464,135.65,135.64,41.47152287]
[1742096194392,0.32412818,135.65,135.64,41.47152287]
[1742096194575,0.18665354,135.65,135.64,41.47152287]
[1742096196080,0.18665354,135.65,135.64,122.17152287]
[1742096196081,5.354e-05,135.65,135.64,122.17152287]
[1742096196279,4.118e-05,135.66,135.65,0.28432314]
[1742096196479,4.118e-05,135.66,135.65,83.48197749]
[1742096198175,4.118e-05,135.66,135.65,104.79231178]
[1742096200287,4.118e-05,135.66,135.65,44.1317083]
[1742096201889,5.955e-05,135.68,135.67,0.28432314]
[1742096202088,5.955e-05,135.68,135.67,15.44947401]
[1742096202668,5.955e-05,135.68,135.67,22.82027401]
[1742096203684,0.03005955,135.68,135.67,22.82027401]
[1742096204089,0.03005955,135.68,135.67,103.52027401]
[1742096212890,5.955e-05,135.68,135.67,41.46992287]
[1742096213103,0.00830475,135.71,135.69,0.28432314]
[1742096213279,0.00830475,135.71,135.7,21.74947401]
[1742096213908,0.00830475,135.71,135.7,29.11857401]
[1742096214477,0.1572234,135.71,135.7,29.11857401]
[1742096215181,0.1872234,135.71,135.7,29.11857401]
[1742096219107,0.1872234,135.71,135.7,29.11857401]
[1742096220705,0.1872234,135.71,135.7,22.81857401]
[1742096220909,0.1872234,135.71,135.7,29.11857401]
[1742096221505,0.1872234,135.71,135.7,47.76822287]
[1742096224605,0.1872234,135.71,135.7,128.46822287]
[1742096226813,9.306e-05,135.72,135.71,0.28432314]
[1742096227019,9.306e-05,135.72,135.71,16.55429374]
[1742096227189,9.306e-05,135.72,135.71,34.09912287]
[1742096230214,9.306e-05,135.72,135.71,41.46772287]
[1742096230513,9.306e-05,135.72,135.71,122.16772287]
[1742096231515,9.306e-05,135.72,135.71,126.99220686]
[1742096233108,9.306e-05,135.72,135.71,122.16772287]
[1742096233501,9.306e-05,135.72,135.71,128.46772287]
[1742096233703,9.306e-05,135.72,135.71,7.3686]
[1742096234014,9.306e-05,135.72,135.71,6.3]
[1742096234391,0.13440474,135.72,135.71,13.6686]
[1742096238123,0.13440474,135.72,135.71,6.3]
[1742096238724,0.16440474,135.72,135.71,6.3]
[1742096242305,0.16440474,135.72,135.71,13.6686]
[1742096244831,0.16440474,135.72,135.71,6.3]
[1742096246431,0.16440474,135.72,135.71,13.6686]
[1742096247254,0.16440474,135.72,135.71,28.83375087]
[1742096247436,0.16440474,135.72,135.71,13.6686]
[1742096249433,0.16440474,135.72,135.71,6.3]
[1742096250331,0.16440474,135.72,135.71,13.6686]
[1742096251638,0.16440474,135.72,135.71,47.76772287]
[1742096254446,0.17493021,135.72,135.71,47.76772287]
[1742096257954,5.872e-05,135.73,135.72,18.933972]
[1742096258249,0.12916706,135.74,135.72,176.56437362]
[1742096258445,0.12916706,135.74,135.72,175.45972635]
[1742096258635,0.12916706,135.74,135.73,34.09912287]
[1742096259043,0.12916706,135.74,135.73,41.46662287]
[1742096261742,0.15916706,135.74,135.73,41.46662287]
[1742096274455,0.16483942,135.74,135.73,41.46662287]
[1742096278278,3.942e-05,135.74,135.73,123.2712939]
[1742096278467,0.02727375,135.76,135.74,18.933972]
[1742096278669,7.375e-05,135.76,135.75,35.20352812]
[1742096279797,0.1521311,135.78,135.76,18.933972]
[1742096279985,0.00329,135.8,135.79,54.09912287]
[1742096280152,0.00329,135.8,135.79,142.16342287]
[1742096282690,5.401e-05,135.81,135.8,18.933972]
[1742096282880,0.1518377,135.83,135.8,18.933972]
[1742096282881,0.1518377,135.83,135.82,38.933972]
[1742096283081,0.1518377,135.83,135.82,141.07912287]
[1742096284491,0.1518377,135.83,135.82,148.44172287]
[1742096291989,3.77e-05,135.83,135.82,209.10232635]
[1742096292178,3.77e-05,135.83,135.82,148.44172287]
[1742096292583,3.77e-05,135.83,135.82,209.10232635]
[1742096292769,0.03,135.88,135.83,18.933972]
[1742096292966,0.03,135.88,135.87,34.09912287]
[1742096293166,0.03,135.88,135.87,40.37912287]
[1742096293888,0.03,135.88,135.87,47.73902287]
[1742096294490,0.16384922,135.88,135.87,47.73902287]
[1742096294669,0.16384922,135.88,135.87,40.37912287]
[1742096295301,0.16384922,135.88,135.87,25.213972]
[1742096295592,0.16384922,135.88,135.87,40.37912287]
[1742096298101,0.16384922,135.88,135.87,6.28]
[1742096298283,0.16384922,135.88,135.85,15.16515087]
[1742096298483,0.16384922,135.88,135.85,18.933972]
[1742096298678,7.52334922,135.88,135.84,0.14216157]
[1742096298880,22.68850009,135.88,135.84,40.37912287]
[1742096299302,7.52334922,135.88,135.84,15.16515087]
[1742096299505,0.16384922,135.88,135.84,21.44515087]
[1742096299820,0.16384922,135.88,135.85,15.16515087]
[1742096300000,7.52344922,135.88,135.84,40.09479973]
[1742096304103,7.52344922,135.88,135.85,15.16515087]
[1742096304602,7.52344922,135.88,135.84,40.09479973]
[1742096305102,7.52344922,135.88,135.85,15.16515087]
[1742096308306,7.52344922,135.88,135.84,40.09479973]
[1742096310008,7.52344922,135.88,135.84,47.45629973]
[1742096312209,0.16384922,135.88,135.85,15.16515087]
[1742096312410,0.16384922,135.88,135.84,47.45629973]
[1742096312591,7.52324922,135.88,135.84,21.44515087]
[1742096312787,22.68840009,135.88,135.84,6.28]
[1742096313802,15.16515087,135.86,135.83,0.063]
[1742096313991,15.16515087,135.85,135.83,0.063]
[1742096314405,0.15872178,135.84,135.83,0.063]
[1742096316311,21.95937265,135.84,135.83,0.063]
[1742096316489,89.98157613,135.84,135.83,0.063]
[1742096316690,29.32097265,135.84,135.83,0.063]
[1742096317406,21.95937265,135.84,135.83,0.063]
[1742096317791,0.15872178,135.84,135.83,0.063]
[1742096319190,15.32387265,135.84,135.83,0.063]
[1742096319486,22.68547265,135.84,135.83,0.063]
[1742096319911,29.32097265,135.84,135.83,0.063]
[1742096321099,89.98157613,135.84,135.83,0.063]
[1742096321906,90.48157613,135.84,135.83,0.063]
[1742096323202,89.98157613,135.84,135.83,0.063]
[1742096329320,21.95937265,135.84,135.83,0.063]
[1742096329710,29.32097265,135.84,135.83,0.063]
[1742096330924,89.98157613,135.84,135.83,0.063]
[1742096333318,90.01157613,135.84,135.83,0.063]
[1742096333831,82.21375435,135.79,135.78,0.063]
[1742096334437,82.36485535,135.79,135.78,0.063]
[1742096335116,89.72915535,135.79,135.78,0.063]
[1742096337337,108.52096578,135.79,135.78,0.0001]
[1742096337524,108.52096578,135.79,135.72,0.063]
[1742096337525,108.28201692,135.79,135.72,0.063]
[1742096337717,15.16515087,135.73,135.72,0.063]
[1742096338411,22.53265087,135.73,135.72,0.063]
[1742096338626,15.16515087,135.74,135.72,0.063]
[1742096338830,15.16515087,135.75,135.72,0.063]
[1742096340934,15.16515087,135.75,135.72,7.4311]
[1742096343011,15.16515087,135.75,135.72,0.063]
[1742096343735,15.16515087,135.74,135.72,0.063]
[1742096348226,142.86060348,135.78,135.72,0.063]
[1742096348227,15.16515087,135.73,135.72,0.063]
[1742096354423,15.30398251,135.73,135.72,0.063]
[1742096354626,22.67148251,135.73,135.72,0.063]
[1742096355740,28.15289069,135.73,135.72,0.063]
[1742096361147,20.0,135.7,135.69,0.063]
[1742096361325,122.93010321,135.7,135.66,0.063]
[1742096361526,15.16515087,135.67,135.66,0.063]
[1742096363242,28.01735905,135.67,135.66,0.063]
[1742096364636,36.79306013,135.67,135.66,0.063]
[1742096365530,29.42226013,135.67,135.66,0.063]
[1742096368548,14.25710926,135.67,135.66,0.063]
[1742096369249,5.48140818,135.67,135.66,0.063]
[1742096370049,20.64655905,135.67,135.66,0.063]
[1742096374555,20.7884184,135.67,135.66,0.063]
[1742096374876,29.56703849,135.67,135.66,0.063]
[1742096376057,14.40188762,135.67,135.66,0.063]
[1742096378356,5.62326753,135.67,135.66,0.063]
[1742096381334,20.7884184,135.67,135.66,0.063]
[1742096382381,5.62326753,135.67,135.66,0.063]
[1742096382543,20.7884184,135.67,135.66,0.063]
[1742096382743,5.62326753,135.67,135.66,0.063]
[1742096382943,14.41624826,135.67,135.66,0.063]
[1742096383959,0.14185935,135.67,135.66,0.063]
[1742096384457,14.43210474,135.67,135.66,0.063]
[1742096388260,5.63810758,135.67,135.66,0.063]
[1742096388461,5.63810758,135.67,135.66,35.77302287]
[1742096389545,5.63810758,135.67,135.66,20.607872]
[1742096389745,0.14185935,135.67,135.66,35.77302287]
[1742096390780,5.935e-05,135.67,135.66,43.14432287]
[1742096394374,0.149852,135.67,135.66,43.14432287]
[1742096394577,0.14979265,135.67,135.66,43.14432287]
[1742096402280,0.14979265,135.67,135.66,0.063]
[1742096402483,15.31494352,135.67,135.66,0.063]
[1742096402886,20.82352249,135.67,135.66,0.063]
[1742096404383,5.65837162,135.67,135.66,0.063]
[1742096407962,20.82352249,135.67,135.66,0.063]
[1742096408886,28.19432249,135.67,135.66,0.063]
[1742096409266,20.82352249,135.67,135.66,0.063]
[1742096413081,5.65837162,135.67,135.66,0.063]
[1742096414471,5.66624074,135.67,135.66,0.063]
[1742096414672,20.83139161,135.67,135.66,0.063]
[1742096415173,28.23219161,135.67,135.66,0.063]
[1742096416472,95.54389509,135.67,135.66,0.063]
[1742096416880,114.33570552,135.67,135.65,0.063]
[1742096417084,15.16515087,135.66,135.65,0.063]
[1742096417284,22.53645087,135.66,135.65,0.063]
[1742096418477,28.04502984,135.66,135.65,0.063]
[1742096418896,88.70563332,135.66,135.65,0.063]
[1742096422475,88.70563332,135.66,135.57,0.063]
[1742096422476,18.79181043,135.62,135.57,0.063]
[1742096422698,35.16515087,135.58,135.57,0.063]
[1742096424597,15.16515087,135.58,135.57,0.063]
[1742096425201,20.67372984,135.58,135.57,0.063]
[1742096428795,28.04942984,135.58,135.57,0.063]
[1742096429383,20.67372984,135.58,135.57,0.063]
[1742096429583,28.04942984,135.58,135.57,0.063]
[1742096431589,20.67372984,135.58,135.57,0.063]
[1742096432111,28.04942984,135.58,135.57,0.063]
[1742096434011,20.67372984,135.58,135.57,0.063]
[1742096434404,20.80927479,135.58,135.57,0.063]
[1742096434587,15.30069582,135.58,135.57,0.063]
[1742096437398,0.13554495,135.58,135.57,0.063]
[1742096439116,15.30069582,135.58,135.57,0.063]
[1742096440206,22.67639582,135.58,135.57,0.063]
[1742096441321,15.30069582,135.58,135.57,0.063]
[1742096442313,20.77707085,135.58,135.57,0.063]
[1742096444811,5.61191998,135.58,135.57,0.063]
[1742096445119,20.77707085,135.58,135.57,0.063]
[1742096448803,5.61191998,135.58,135.57,0.063]
[1742096449523,20.77707085,135.58,135.57,0.063]
[1742096450900,5.61191998,135.58,135.57,0.063]
[1742096454207,0.13554495,135.58,135.57,0.063]
[1742096454422,0.14666026,135.58,135.57,0.063]
[1742096455427,15.31181113,135.58,135.57,0.063]
[1742096456928,22.68751113,135.58,135.57,0.063]
[1742096457508,7.52236026,135.58,135.57,0.063]
[1742096457708,22.68751113,135.58,135.57,0.063]
[1742096460014,28.19464715,135.58,135.57,0.063]
[1742096464420,20.0,135.54,135.53,0.063]
[1742096464638,35.16515087,135.54,135.53,0.063]
[1742096465026,40.67228689,135.54,135.53,0.063]
[1742096466144,48.05008689,135.54,135.53,0.063]
[1742096466651,5.50713602,135.54,135.53,0.063]
[1742096470137,5.50713602,135.54,135.53,15.37031244]
[1742096471263,5.50713602,135.54,135.53,35.81752287]
[1742096471450,3.602e-05,135.54,135.53,123.89592287]
[1742096471630,0.14666026,135.58,135.55,0.28432314]
[1742096471953,0.14666026,135.58,135.57,33.9569613]
[1742096472648,0.14666026,135.58,135.57,12.6544]
[1742096472961,0.14666026,135.58,135.57,27.81955087]
[1742096474144,0.14666026,135.58,135.57,35.19575087]
[1742096474348,0.14666026,135.58,135.57,43.64290049]
[1742096474549,0.16190223,135.58,135.57,43.92722363]
[1742096475659,0.16190223,135.58,135.57,45.58262363]
[1742096476747,0.16190223,135.58,135.57,37.61282363]
[1742096478243,0.16190223,135.58,135.57,56.26247249]
[1742096478244,2.23e-06,135.58,135.57,56.26247249]
[1742096480532,2.23e-06,135.58,135.57,56.24247249]
[1742096487978,8.482e-05,135.6,135.59,20.28432314]
[1742096488178,8.482e-05,135.6,135.59,86.15857298]
[1742096488477,9.438e-05,135.61,135.6,0.14216157]
[1742096488678,9.438e-05,135.61,135.6,47.36676255]
[1742096489177,8.933e-05,135.62,135.6,47.50892412]
[1742096489352,8.933e-05,135.62,135.61,23.75446206]
[1742096490249,8.933e-05,135.62,135.61,31.12846206]
[1742096490453,8.933e-05,135.62,135.61,49.92027249]
[1742096490675,7.913e-05,135.64,135.62,23.89662363]
[1742096490849,7.913e-05,135.64,135.63,50.07446206]
[1742096492877,7.913e-05,135.64,135.63,57.44746206]
[1742096494175,7.913e-05,135.64,135.63,37.58962363]
[1742096494470,0.13658193,135.64,135.63,37.58962363]
[1742096496361,0.13658193,135.64,135.63,29.07748321]
[1742096497274,0.13658193,135.64,135.63,22.47316007]
[1742096497457,0.13658193,135.64,135.63,7.51516157]
[1742096497656,0.13658193,135.64,135.63,0.14216157]
[1742096497852,0.13658193,135.64,135.62,7.51546157]
[1742096498057,0.13658193,135.64,135.6,109.61672164]
[1742096499075,0.13658193,135.64,135.63,0.063]
[1742096499277,0.16658193,135.64,135.63,0.063]
[1742096500284,15.266742,135.64,135.63,0.063]
[1742096501658,22.639142,135.64,135.63,0.063]
[1742096502290,41.28879086,135.64,135.63,0.063]
[1742096502790,42.91659086,135.64,135.63,0.063]
[1742096504568,18.79181043,135.63,135.56,0.063]
[1742096504775,15.10016007,135.58,135.56,0.063]
[1742096506377,16.20633322,135.58,135.56,0.063]
[1742096507581,16.20633322,135.59,135.56,0.063]
[1742096509496,16.20633322,135.59,135.56,7.4398]
[1742096510286,1.10617315,135.59,135.56,7.4398]
[1742096510970,0.14216157,135.56,135.52,0.063]
[1742096511174,15.10016007,135.53,135.52,0.063]
[1742096511487,15.10016007,135.54,135.52,0.063]
[1742096511685,1.10617315,135.53,135.52,0.063]
[1742096513166,16.20633322,135.53,135.52,0.063]
[1742096514288,24.75553002,135.53,135.52,0.063]
[1742096514476,24.91773839,135.53,135.52,0.063]
[1742096520663,0.16220837,135.53,135.52,0.063]
[1742096520869,0.16220837,135.53,135.52,23.71235687]
[1742096522580,0.16220837,135.53,135.52,31.09125687]
[1742096523189,0.16220837,135.53,135.52,7.4419]
[1742096523973,0.16220837,135.53,135.52,31.37558001]
[1742096525585,24.91773839,135.53,135.52,0.063]
[1742096526596,32.29613839,135.53,135.52,0.063]
[1742096531005,50.94578725,135.53,135.52,0.063]
[1742096531776,133.14578725,135.53,135.52,0.063]
[1742096532380,51.08794882,135.53,135.52,0.063]
[1742096534503,51.06771867,135.53,135.52,0.063]
[1742096537091,2.27216157,135.51,135.5,0.063]
[1742096537293,52.09734045,135.51,135.5,0.063]
[1742096537996,51.59734045,135.51,135.5,0.063]
[1742096538312,59.47684045,135.51,135.5,0.063]
[1742096539180,59.61900202,135.51,135.5,0.063]
[1742096539380,25.21911043,135.5,135.49,0.063]
[1742096539592,72.51782417,135.5,135.49,0.063]
[1742096540984,79.89782417,135.5,135.49,0.063]
[1742096541204,98.34792417,135.5,135.46,0.063]
[1742096541506,62.29900573,135.47,135.46,0.063]
[1742096541805,63.40517888,135.47,135.46,0.063]
[1742096542290,70.78687888,135.47,135.46,0.063]
[1742096543119,1.10617315,135.47,135.46,0.063]
[1742096543291,23.64935687,135.48,135.46,0.063]
[1742096543489,24.75553002,135.48,135.46,0.063]
[1742096544315,16.25290068,135.48,135.46,0.063]
[1742096546304,24.77310237,135.48,135.46,0.063]
[1742096547530,23.66692922,135.47,135.46,0.063]
[1742096549612,31.04862922,135.47,135.46,0.063]
[1742096551210,58.14470122,135.47,135.45,0.063]
[1742096551415,58.14470122,135.47,135.41,0.063]
[1742096551416,38.79181043,135.42,135.41,0.063]
[1742096551614,43.66692922,135.39,135.37,0.063]
[1742096551919,24.77310237,135.39,135.37,0.063]
[1742096552609,32.15910237,135.39,135.37,0.063]
[1742096553812,24.77310237,135.39,135.37,0.063]
[1742096554595,24.9221807,135.39,135.37,0.063]
[1742096556122,51.09999113,135.39,135.37,0.063]
[1742096560732,43.57182956,135.39,135.37,0.063]
[1742096562817,51.09999113,135.39,135.37,0.063]
[1742096562998,43.57182956,135.39,135.37,0.063]
[1742096566611,50.95782956,135.39,135.37,0.063]
[1742096566805,43.57182956,135.39,135.37,0.063]
[1742096568526,24.9221807,135.39,135.37,0.063]
[1742096570335,36.4243403,135.39,135.37,0.063]
[1742096574528,36.41064813,135.39,135.37,0.063]
[1742096575228,16.41064813,135.39,135.37,0.063]
[1742096575535,15.30447498,135.39,135.37,0.063]
[1742096589145,0.13538616,135.39,135.37,0.063]
[1742096589332,15.30447498,135.39,135.37,0.063]
[1742096594457,15.31056874,135.39,135.37,0.063]
[1742096597662,0.14147992,135.39,135.37,0.063]
[1742096598762,0.14147992,135.39,135.37,15.23208882]
[1742096599534,0.14147992,135.39,135.38,7.4496]
[1742096600928,0.14147992,135.39,135.38,0.063]
[1742096604377,0.16011976,135.4,135.38,111.36281196]
[1742096604684,4.909e-05,135.43,135.42,0.28432314]
[1742096604860,4.909e-05,135.43,135.42,121.1994161]
[1742096605060,4.909e-05,135.43,135.42,60.52306082]
[1742096605767,4.909e-05,135.43,135.42,41.87341196]
[1742096606667,4.909e-05,135.43,135.42,49.25781196]
[1742096614482,0.15848869,135.43,135.42,49.25781196]
[1742096615366,8.869e-05,135.43,135.42,67.90746082]
[1742096615567,8.869e-05,135.43,135.42,128.5838161]
[1742096616304,0.14063789,135.46,135.45,20.28432314]
[1742096616475,1.005e-05,135.5,135.49,26.17241043]
[1742096616779,1.005e-05,135.5,135.49,47.80149925]
[1742096621393,1.005e-05,135.5,135.49,29.29401196]
[1742096624905,0.02998995,135.53,135.51,20.28432314]
[1742096625084,0.03,135.55,135.54,18.79181043]
[1742096625085,0.0001,135.55,135.54,18.79181043]
[1742096625276,0.0001,135.55,135.54,101.11725453]
[1742096625779,0.0001,135.58,135.55,20.515972]
[1742096625981,0.0001,135.58,135.57,33.96089925]
[1742096627179,0.0001,135.58,135.57,41.33709925]
[1742096627603,0.0001,135.58,135.57,41.47926082]
[1742096631090,0.03,135.63,135.58,0.28432314]
[1742096631387,0.03,135.63,135.62,15.16908882]
[1742096632206,0.03,135.63,135.62,22.54258882]
[1742096633406,0.03,135.63,135.62,22.68475039]
[1742096634216,0.03,135.67,135.65,20.0]
[1742096634501,0.17834182,135.69,135.68,0.14216157]
[1742096634709,0.17834182,135.69,135.68,15.31125039]
[1742096636086,0.17834182,135.69,135.68,22.68145039]
[1742096637643,0.17834182,135.69,135.68,15.16908882]
[1742096637782,0.17834182,135.69,135.68,15.31125039]
[1742096637981,0.17834182,135.69,135.68,22.68145039]
[1742096638993,0.17834182,135.69,135.68,15.31125039]
[1742096640213,0.17834182,135.69,135.68,22.68145039]
[1742096641618,0.17834182,135.69,135.68,15.31125039]
[1742096641817,0.17834182,135.69,135.64,13.8724]
[1742096642003,0.17834182,135.69,135.65,15.16908882]
[1742096643023,1.10617315,135.68,135.64,21.66908882]
[1742096644335,1.10617315,135.68,135.64,30.09355134]
[1742096646227,8.47637315,135.68,135.64,30.09355134]
[1742096647317,8.47637315,135.68,135.64,23.59355134]
[1742096647702,23.59355134,135.65,135.58,80.7]
[1742096647903,24.69972449,135.64,135.59,23.87787448]
[1742096648418,7.373,135.63,135.59,23.87787448]
[1742096648614,7.373,135.63,135.59,23.73571291]
[1742096648918,30.96655134,135.63,135.58,118.14905134]
[1742096649117,30.96615134,135.64,135.59,23.59355134]
[1742096649332,1.10617315,135.63,135.59,23.59355134]
[1742096649824,32.07162449,135.65,135.6,23.59355134]
[1742096650027,1.10617315,135.64,135.6,23.59355134]
[1742096650925,24.69972449,135.64,135.59,31.11031291]
[1742096651127,32.07222449,135.64,135.59,31.11031291]
[1742096652127,1.10617315,135.64,135.59,31.11031291]
[1742096653423,8.47867315,135.64,135.59,31.11031291]
[1742096653730,32.07222449,135.64,135.59,31.11031291]
[1742096654620,0.13498533,135.6,135.59,31.17331291]
[1742096654826,0.13498533,135.6,135.59,23.79871291]
[1742096655020,0.13498533,135.6,135.59,23.65655134]
[1742096655325,0.13498533,135.6,135.59,0.063]
[1742096658326,0.13498533,135.6,135.59,23.94087448]
[1742096659315,0.13498533,135.6,135.59,31.31597448]
[1742096664435,0.13498533,135.6,135.59,22.82924122]
[1742096674437,23.58439123,135.66,135.59,22.82924122]
[1742096674620,0.15984709,135.6,135.59,7.72242314]
[1742096676139,0.15984709,135.6,135.59,22.82924122]
[1742096677441,0.15984709,135.6,135.59,22.54491808]
[1742096677646,0.15984709,135.6,135.59,0.063]
[1742096678235,0.15984709,135.6,135.59,22.82924122]
[1742096678631,4.709e-05,135.6,135.59,101.9061624]
[1742096679019,9.044e-05,135.62,135.61,0.28432314]
[1742096679238,1.777e-05,135.63,135.62,38.79181043]
[1742096679432,0.17758582,135.67,135.64,0.14216157]
[1742096679722,0.17758582,135.67,135.64,15.24897965]
[1742096680447,0.17758582,135.67,135.64,22.62137965]
[1742096681523,1.832e-05,135.65,135.64,41.41319008]
[1742096681737,4.897e-05,135.66,135.65,0.14216157]
[1742096681935,4.897e-05,135.66,135.65,75.81841354]
[1742096682659,4.897e-05,135.66,135.65,34.04079008]
[1742096682848,4.897e-05,135.66,135.65,15.39114122]
[1742096683843,4.897e-05,135.66,135.65,22.76304122]
[1742096685749,4.897e-05,135.66,135.65,101.8399624]
[1742096686751,4.897e-05,135.66,135.65,182.5399624]
[1742096688428,4.897e-05,135.66,135.65,122.11269008]
[1742096689651,0.03,135.72,135.66,18.64964886]
[1742096689850,0.03,135.72,135.69,15.24897965]
[1742096691429,0.03,135.72,135.69,22.61867965]